Cogmind - Beta 13 @@@ ROGUE MODE // 2024.03.24 @ 19:30:15 Player: Julie Result: Destroyed by L-41 Fighter with Axe Performance ------------- Evolutions (3) 1500 Regions Visited (5) 1000 Robots Destroyed (39) 195 Value Destroyed (962) 962 Prototype IDs (1) 20 Alien Tech Used (0) 0 Bonus (54) 54 TOTAL SCORE: 3731 Bonus ------- Follower Combat Kills 54 Cogmind --------- Core Integrity 0/700 Matter 270/300 Energy 230/290 System Corruption 3% Temperature Cool (9) Movement Core (250) Ox4 Location -7/Factory Parts ------- > --- POWER (2) -------- Improved Deuterium Engine > --- PROPULSION (5) --- (None) > --- UTILITY (4) ------ Melee Analysis Suite > --- WEAPON (2) ------- Shock Rifle > --- INVENTORY (5) ---- Corruption Screen EM Pulse Cannon Peak State ------------ > --- POWER ------------ Light Deuterium Engine Improved Deuterium Engine > --- PROPULSION ------- Carbon-fiber Leg Carbon-fiber Leg Carbon-fiber Leg Carbon-fiber Leg Makeshift Leg > --- UTILITY ---------- Large Storage Unit Improved Signal Interpreter Improved Targeting Computer Power Shielding > --- WEAPON ----------- Improved Medium Laser EM Pulse Cannon > --- INVENTORY -------- Improved Ion Engine Light Deuterium Engine Improved Deuterium Engine Improved Deuterium Engine VTOL Module VTOL Module Disposable Heat Sink Large Storage Unit Core Analyzer Transmission Jammer Hardened Light Armor Plating Reactive Plating Shock Rifle Improved Medium Laser EMP Blaster [Rating: 40] Favorites ----------- Power Ion Engine Engine Ion Engine Propulsion Carbon-fiber Leg Leg Carbon-fiber Leg Hover Unit Airjet Flight Unit VTOL Module Utility Power Shielding Device Terrain Scanner Storage Large Storage Unit Processor Improved Targeting Computer Protection Power Shielding Weapon Improved Medium Laser Energy Gun Improved Medium Laser Energy Cannon EM Pulse Cannon Ballistic Gun Assault Rifle Launcher EMP Blaster Slashing Weapon Greatsword Build | -11 -10 -9 -9 -8 -7 ------- Run | Yrd Mat Mat Min Mat Fac Slots Evolved 6 | . . 2 . 2 2 Power 1 | . . . . . 1 Propulsion 3 | . . 1 . 1 1 Utility 2 | . . 1 . 1 . Weapon . | . . . . . . Parts Attached 66 | 6 9 15 . 12 24 Power 9 | 1 2 . . 3 3 Engine 9 | 1 2 . . 3 3 Core . | . . . . . . Reactor . | . . . . . . Propulsion 29 | 2 2 7 . 5 13 Treads . | . . . . . . Leg 17 | 2 2 7 . 5 1 Wheel . | . . . . . . Hover 7 | . . . . . 7 Flight 5 | . . . . . 5 Utility 12 | 1 2 5 . 2 2 Device 1 | . 1 . . . . Storage 5 | 1 . 3 . 1 . Processor 4 | . . 2 . . 2 Hackware . | . . . . . . Protection 2 | . 1 . . 1 . Artifact . | . . . . . . Weapon 16 | 2 3 3 . 2 6 Energy Gun 9 | 1 2 1 . . 5 Energy Cannon 2 | . . . . 2 . Ballistic Gun 1 | 1 . . . . . Ballistic Cannon . | . . . . . . Launcher 3 | . 1 2 . . . Special Weapon . | . . . . . . Impact Weapon . | . . . . . . Slashing Weapon 1 | . . . . . 1 Piercing Weapon . | . . . . . . Special Melee Weapon . | . . . . . . Unidentified Prototypes 1 | . 1 . . . . Parts Lost 13 | . 1 2 . . 10 Power 2 | . 1 . . . 1 Propulsion 7 | . . 1 . . 6 Utility 2 | . . . . . 2 Weapon 2 | . . 1 . . 1 Highest Loss Streak 5 | . 1 1 . . 5 To Critical Strikes . | . . . . . . Average Slot Usage (%) 89 | . 91 98 100 98 70 Engine 9 | . 11 11 11 8 7 Leg 25 | . 28 32 33 34 9 Flight 4 | . . . . . 15 Storage 8 | . 14 11 11 9 2 Processor 10 | . . 10 11 9 17 Protection 10 | . 5 11 11 17 4 Energy Gun 10 | . 14 16 11 9 4 Energy Cannon 2 | . . . . 7 2 Launcher 4 | . 12 5 11 1 . Naked Turns . | . . . . . . Heaviest Build 47 | 14 17 23 23 47 45 Greatest Support 80 | 20 20 45 45 65 80 Greatest Overweight (x) 14 | 3 . 7 . 1 14 Average Overweight (x) . | 1 . . . . . Largest Inventory Capacity 15 | 8 8 15 10 15 15 Average Capacity 10 | 7 8 9 10 15 8 Most Carried 15 | 5 8 10 9 13 15 Average Carried 7 | 2 6 7 9 9 7 Final Capacity 15 | 8 8 10 10 15 5 Final Carried 13 | 4 8 9 9 13 2 Class Distribution -------------------- 85% | Mutant 12% | Scavenger-Sprinter Dominant Class ---------------- Mutant | -10/Materials Mutant | -9/Materials Mutant | -9/Mines Mutant | -8/Materials Mutant | -7/Factory Resources | -11 -10 -9 -9 -8 -7 ----------- Run | Yrd Mat Mat Min Mat Fac Matter Collected 955 | 243 68 209 . 284 151 Remotely . | . . . . . . Salvage Created 1142 | . 233 325 . 261 323 Parts 60 | . 22 15 . 10 13 Haulers Intercepted 1 | . 1 . . . . Recyclers Shooed 1 | . . . . . 1 Parts Field Recycled . | . . . . . . Retrieved Matter . | . . . . . . Parts Self-Destructed . | . . . . . . Prevented . | . . . . . . Kills | -11 -10 -9 -9 -8 -7 ------- Run | Yrd Mat Mat Min Mat Fac Combat Hostiles Destroyed 27 | . 7 9 . 5 6 Melee 1 | . . . . . 1 Guns 9 | . 1 5 . 2 1 Cannons 5 | . . . . 2 3 AOE 11 | . 6 4 . 1 . Classes Destroyed 11 | . 5 2 . 1 3 Worker 4 | . 4 . . . . Tunneler 1 | . . . . 1 . Hauler 1 | . 1 . . . . Recycler 2 | . . . . . 2 Operator 1 | . . . . . 1 Watcher 3 | . 1 1 . 1 . Swarmer 11 | . 3 3 . 1 4 Cutter 2 | . . . . . 2 Grunt 8 | . 4 2 . 2 . Brawler 1 | . . 1 . . . Sentry 5 | . . 3 . 2 . Best Kill Streak 5 | . 4 3 . 4 5 Combat Bots Only 4 | . 3 3 . 3 4 Max Kills in Single Turn 2 | . 2 2 . 2 1 Gunslinging . | . . . . . . Exploded 2 | . 2 2 . 1 . Melee 1 | . . . . . 1 Uniques/NPCs Destroyed . | . . . . . . Combat | -11 -10 -9 -9 -8 -7 -------- Run | Yrd Mat Mat Min Mat Fac Hostile Shots Fired 220 | . 11 43 . 36 130 Missed 89 | . 5 17 . 12 55 Damage Taken 2321 | . 279 349 . 304 1389 Core 874 | . 53 62 . 42 717 Absorbed by Shields . | . . . . . . Redirected to Shielding 42 | . . 8 . 5 29 Ignored by Resistances 33 | . . . . 33 . Regen/Repaired (Parts) 23 | . . . . 23 . Core Remaining (%) 88 | 100 78 . 84 92 . Volleys Fired 74 | . 11 23 . 18 22 Largest 2 | . 2 2 . 2 2 Hottest 119 | . 70 112 . 119 119 Shots Fired 130 | . 21 44 . 34 31 Gun 79 | . 11 35 . 17 16 Cannon 32 | . . . . 17 15 Launcher 19 | . 10 9 . . . Special . | . . . . . . Kinetic . | . . . . . . Thermal 61 | . . 35 . 17 9 Explosive 16 | . 10 6 . . . Electromagnetic 53 | . 11 3 . 17 22 Robot Hit Streak 14 | . 3 7 . 10 14 Robot Miss Streak 4 | . 3 4 . 1 3 Penetration Max . | . . . . . . Secondary Targets 1 | . . 1 . . . Max Gunslinging Chain 1 | . . 1 . . . Shots Hit Robots 72 | . 6 17 . 22 27 Core Hits 57 | . 20 17 . 10 10 Critical Kills . | . . . . . . Critical Parts Destroyed . | . . . . . . Critical Strikes 2 | . . . . 2 . Burn 2 | . . . . 2 . Melee Attacks 4 | . . . . . 4 Impact . | . . . . . . Slashing 4 | . . . . . 4 Piercing . | . . . . . . Sneak Attacks . | . . . . . . Combat Hostiles . | . . . . . . Follow-up Attacks . | . . . . . . Damage Inflicted 2569 | . 690 606 . 608 665 Guns 836 | . 62 324 . 240 210 Cannons 485 | . . . . 219 266 Explosions 1088 | . 628 282 . 149 29 Melee 147 | . . . . . 147 Ramming 13 | . . . . . 13 Kinetic . | . . . . . . Thermal 941 | . 96 324 . 389 132 Explosive 725 | . 532 193 . . . Electromagnetic 743 | . 62 89 . 219 373 Impact . | . . . . . . Slashing 147 | . . . . . 147 Piercing . | . . . . . . Highest Corruption 3 | . . . . 2 3 Average Corruption 2 | . . . . 2 2 Corruption Purged . | . . . . . . Corruption Blocked . | . . . . . . Effects 11 | . . . . 7 4 Message Errors 4 | . . . . 2 2 Heat Flow Errors 1 | . . . . 1 . Energy Discharges 1 | . . . . . 1 Data Loss (minor) 1 | . . . . 1 . Data Loss (major) 1 | . . . . . 1 Alerts 1 | . . . . 1 . Weapon Failures 2 | . . . . 2 . Overload Shots . | . . . . . . Overflow Damage 111 | . 47 . . 45 19 Projectiles 29 | . . . . 29 . Explosions 63 | . 47 . . 16 . Melee 19 | . . . . . 19 Knockbacks . | . . . . . . Impact . | . . . . . . Kinetic . | . . . . . . Secondary . | . . . . . . Self-Inflicted Damage 281 | . 218 4 . 54 5 Shots 7 | . 5 1 . 1 . Rammed 8 | . . . . . 8 Targets Rammed 8 | . . . . . 8 Kicked . | . . . . . . Crushed . | . . . . . . Highest Temperature 447 | . 36 294 . 447 424 Average Temperature 127 | . 17 84 . 156 184 Received Heat Transfer 402 | . 33 147 . 108 114 Effects 14 | . . . . 7 7 Shutdowns 4 | . . . . 2 2 Interference 5 | . . . . . 5 Matter Decay 1 | . . . . 1 . Damage (major) 4 | . . . . 4 . Siege Activations . | . . . . . . Robots Corrupted 1 | . . . . . 1 Combat Hostiles 1 | . . . . . 1 Parts Fried 8 | . . 2 . 1 5 Impact Corruptions . | . . . . . . Robots Melted . | . . . . . . Combat Hostiles . | . . . . . . Parts Melted 3 | . . . . 2 1 Heat Transferred 1941 | . 100 703 . 866 272 Parts Sabotaged . | . . . . . . Parts Stolen . | . . . . . . Parts Stripped . | . . . . . . Power Chain Reactions 4 | . 1 1 . 1 1 Alert | -11 -10 -9 -9 -8 -7 ------- Run | Yrd Mat Mat Min Mat Fac Peak Influence 430 | . 379 430 114 245 307 Initial 159 | . . 159 114 44 50 Average 193 | . 194 302 114 119 192 Maximum Alert Level 2 | . 1 2 . 1 1 Low Security (%) 59 | 100 52 12 100 97 60 Level 1 39 | . 47 81 . 2 39 Level 2 1 | . . 6 . . . Level 3 . | . . . . . . Level 4 . | . . . . . . Level 5 . | . . . . . . High Security . | . . . . . . Max Security . | . . . . . . Squads Dispatched 6 | . 1 . . . 5 Investigation 1 | . . . . . 1 Extermination . | . . . . . . Reinforcement 5 | . 1 . . . 4 Assault . | . . . . . . Garrison . | . . . . . . Intercept . | . . . . . . Searches Triggered . | . . . . . . Construction Impeded . | . . . . . . Haulers Reinforced . | . . . . . . Active Scanning Responses . | . . . . . . Cargo Convoy Interrupts . | . . . . . . Stealth | -11 -10 -9 -9 -8 -7 --------- Run | Yrd Mat Mat Min Mat Fac Distress Signals 2 | . 1 . . 1 . Communications Jammed . | . . . . . . Distress Signals . | . . . . . . Times Spotted 73 | . 10 14 . 12 37 Peak Tracking Total 10 | . 3 3 . 5 10 Tactical Retreats 7 | . . . . . 7 Traps | -11 -10 -9 -9 -8 -7 ------- Run | Yrd Mat Mat Min Mat Fac Traps Triggered 6 | . . . . 3 3 Indirectly . | . . . . . . Trap Hack Attempts . | . . . . . . Triggered . | . . . . . . Disarmed . | . . . . . . Reprogrammed . | . . . . . . Reused . | . . . . . . Traps Extracted . | . . . . . . Installed . | . . . . . . Triggered . | . . . . . . Machines | -11 -10 -9 -9 -8 -7 ---------- Run | Yrd Mat Mat Min Mat Fac Machines Disabled 8 | . 5 1 . 1 1 Max in Single Turn 2 | . 2 1 . . 1 Machines Repaired . | . . . . . . Machines Dismantled . | . . . . . . Machines Sabotaged . | . . . . . . Overloaded Fab Kills . | . . . . . . Hacking | -11 -10 -9 -9 -8 -7 --------- Run | Yrd Mat Mat Min Mat Fac Machines Accessed 9 | . 2 4 . 3 . Terminals 6 | . 2 3 . 1 . Fabricators . | . . . . . . Repair Stations 2 | . . 1 . 1 . Recycling Units 1 | . . . . 1 . Scanalyzers . | . . . . . . Garrison Access . | . . . . . . Total Hacks 12 | . 3 5 . 4 . Successful 8 | . 1 3 . 4 . Failed 4 | . 2 2 . . . Catastrophic . | . . . . . . Database Lockouts . | . . . . . . Manual . | . . . . . . Terminals 7 | . 3 3 . 1 . Fabricators . | . . . . . . Repair Stations 4 | . . 2 . 2 . Recycling Units 1 | . . . . 1 . Scanalyzers . | . . . . . . Garrison Access . | . . . . . . Terminal Hacks 4 | . 1 2 . 1 . Emergency Access Points 1 | . . 1 . . . Locate Traps 1 | . . . . 1 . Zone Layout 2 | . 1 1 . . . Fabricator Hacks . | . . . . . . Repair Station Hacks 3 | . . 1 . 2 . Scan Component 2 | . . 1 . 1 . Repair 1 | . . . . 1 . Recycling Unit Hacks 1 | . . . . 1 . Report Inventory 1 | . . . . 1 . Scanalyzer . | . . . . . . Garrison Access Hacks . | . . . . . . Unauthorized Hacks . | . . . . . . Terminals . | . . . . . . Fabricators . | . . . . . . Repair Stations . | . . . . . . Recycling Units . | . . . . . . Scanalyzers . | . . . . . . Garrison Access . | . . . . . . Data Cores Recovered 1 | . . . . . 1 Used . | . . . . . . Hacking Detections 6 | . 2 2 . 2 . Full Trace Events . | . . . . . . Feedback Events . | . . . . . . Feedback Blocked . | . . . . . . Robot Schematics Acquired . | . . . . . . Robots Built . | . . . . . . Authchips . | . . . . . . Time . | . . . . . . Total Robot Build Rating . | . . . . . . Part Schematics Acquired . | . . . . . . Parts Built . | . . . . . . Authchips . | . . . . . . Time . | . . . . . . Total Part Build Rating . | . . . . . . Parts Repaired 1 | . . . . 1 . Time 44 | . . . . 44 . Parts Recycled . | . . . . . . Recycled Matter . | . . . . . . Retrieved Matter . | . . . . . . Retrieved Components . | . . . . . . Parts Scanalyzed . | . . . . . . Part Schematics Acquired . | . . . . . . Parts Damaged . | . . . . . . Bothacking | -11 -10 -9 -9 -8 -7 ------------ Run | Yrd Mat Mat Min Mat Fac Used RIF Installer . | . . . . . . Robots Hacked . | . . . . . . Non-combat . | . . . . . . Combat . | . . . . . . Robot Hacks Applied . | . . . . . . Relay Couplers Released . | . . . . . . Fabnet Peak Effective % . | . . . . . . Robots Rewired . | . . . . . . Allies Hacked . | . . . . . . Hacks Repelled . | . . . . . . Allies | -11 -10 -9 -9 -8 -7 -------- Run | Yrd Mat Mat Min Mat Fac Total Allies 2 | . . . 2 . . Largest Group 2 | . . . 2 2 . Highest-Rated Group 41 | . . . 41 41 . Highest-Rated Ally 31 | . . . 31 31 . Total Orders . | . . . . . . Ally Attacks 15 | . . . . 15 . Total Damage 146 | . . . . 146 . Kills 4 | . . . . 4 . Allies Corrupted . | . . . . . . Allies Melted . | . . . . . . Intel | -11 -10 -9 -9 -8 -7 ------- Run | Yrd Mat Mat Min Mat Fac Robot Analysis Total . | . . . . . . Derelict Logs Recovered . | . . . . . . Drone Launches . | . . . . . . Drone Recoveries . | . . . . . . Exploration | -11 -10 -9 -9 -8 -7 ------------- Run | Yrd Mat Mat Min Mat Fac Turns Passed 2177 | 74 342 547 98 520 596 Spaces Moved 2083 | 43 241 361 67 284 1087 Core 58 | 22 . 2 . . 34 Treads . | . . . . . . Legs 1047 | 21 241 359 67 284 75 Wheels . | . . . . . . Hover 49 | . . . . . 49 Flight 929 | . . . . . 929 Fastest Speed 26 | 50 120 120 120 120 26 Average Speed 79 | 143 120 123 120 124 38 Slowest Speed 750 | 200 120 400 120 190 750 Overloaded Moves . | . . . . . . Propulsion Burnouts . | . . . . . . Robots Hopped 8 | . . . . . 8 Cave-ins Triggered . | . . . . . . Exploration Rate (%) 25 | 4 46 29 16 25 31 Regions Visited 5 Branch Regions 1 Pre-discovered Areas . | . . . . . . Known Exits Taken . | . . . . . . Unknown Exits Taken 5 | 1 1 1 1 1 . Scrap Searched . | . . . . . . Spaces Dug . | . . . . . . Terrain Destroyed 109 | . 79 26 . 2 2 Melee . | . . . . . . Projectile . | . . . . . . AOE 109 | . 79 26 . 2 2 Terrain Rammed . | . . . . . . Walls Destroyed . | . . . . . . Machines Disabled . | . . . . . . Actions | -11 -10 -9 -9 -8 -7 --------- Run | Yrd Mat Mat Min Mat Fac Total 2462 | 53 272 418 84 413 1222 Wait 150 | . . 3 18 83 46 Move 2062 | 42 240 360 66 283 1071 Hop 8 | . . . . . 8 Pick Up 45 | 5 6 9 . 10 15 Fast Attach 22 | 5 2 1 . 4 10 Attach 24 | 1 2 4 . 5 12 Detach 11 | . 2 . . 3 6 Swap 20 | . 5 10 . 3 2 Drop 34 | . 4 8 . 4 18 Fire 74 | . 11 23 . 18 22 Melee 4 | . . . . . 4 Ram 8 | . . . . . 8 Kick . | . . . . . . Crush . | . . . . . . Escape Stasis . | . . . . . . Rewire . | . . . . . . Trap . | . . . . . . Miscellaneous . | . . . . . . Route ------- -11/Scrapyard -10/Materials -9/Materials (discovered 2 exits: *Mat / [*Min]) -9/Mines -8/Materials -7/Factory History --------- Turn | Location | Event 11 | -11/Scrapyard | Discovered new exit (range 15) 75 | -11/Scrapyard | Entered Materials 316 | -10/Materials | Build established: Mutant 386 | -10/Materials | Discovered new exit (range 10) 417 | -10/Materials | Entered another Materials area 417 | -9/Materials | Evolved 2 slots: Propulsion x1, Utility x1 888 | -9/Materials | Discovered new exit (range 13) 890 | -9/Materials | Discovered new exit (range 11) 964 | -9/Materials | Entered Mines 1001 | -9/Mines | Discovered new exit (range 5) 1062 | -9/Mines | Entered Materials 1062 | -8/Materials | Accompanied by 2 allies 1062 | -8/Materials | Evolved 2 slots: Propulsion x1, Utility x1 1067 | -8/Materials | Led the pair of lost Derelicts to an unsafe place 1357 | -8/Materials | Repaired Mak. Leg 1557 | -8/Materials | Discovered new exit (range 10) 1582 | -8/Materials | Entered Factory 1582 | -7/Factory | Evolved 2 slots: Power x1, Propulsion x1 2080 | -7/Factory | Core integrity fell below 50% 2118 | -7/Factory | Lost 5 parts (4n1w) 2139 | -7/Factory | Core integrity fell below 20% 2178 | -7/Factory | Destroyed by L-41 Fighter with Axe Last Messages --------------- 02121_ Airjet severed. 02127_ K-01 Serf cleans the Power Conduit. 02135_ Airjet destroyed. 02138_ Arc Projector severed. 02138_ Slammed into C-17 Slicer. 02138_ Destabilizing: Core damaged (-35). 02139_ Slammed into C-17 Slicer. 02147_ IGFJZSUBV%XG79AC 6ORXDFEAI 02147_ Slammed into C-17 Slicer. 02151_ Airjet destroyed. 02160_ Imp. Targeting Computer destroyed. 02165_ Destroyed Surge Thruster. 02166_ C-17 Slicer system terminally corrupted. 02166_ Surge Thruster fried. 02166_ Blade Saw fried. 02166_ Lgt. Nuclear Core fried. 02166_ Reaction Control System fried. 02170_ Acquired 25 matter. 02171_ R-06 Scavenger collects Arc Projector. 02173_ System corrupted: Energy discharge (-62). Map ----- +----------------------------------------------------+ | #??# # """"""" #??# # | | #??# # #??######+#### [ | | #??# ##############???????# | | #??# #?###########????????# ##################### | | #### ### ########## #????#??????????????? | | ## # =/ #??## ?##########???? | | ## # #### #??# #???? | | ## # #??# #??# "" * #???? | | ## + #??# #??# "" #???? | | ### # [[[ !#??# " " #??# "T [! ! +???? | | ??# #= [] #??# " " #### "" [! #???? | | ### # [] #??# " " + "" #???? | | ! ###########??#r " " # ????? | | #????????????# " " # """" """" #???? | | #????????????#b " " + """" """" #???? | | #????????????# " " #### """" """" #???? | | #??###########b " " #??# """" """"?????? | | #??? # " " #??# ???????? | | #???? # gr #??#######/####?????? | | % #????" " " " # ####### #?????? | | #??? " " " " # * ! ####### | | #??? " " " " # *!! " | | #??? " " " " + *!! "T | | #??? " " " " # | | #??? " " " " / l ####### | | #??? " " " " ####@########## ## | | #??? " " " " #? ???????########## | | #??? " " " " # """??????????????# ! | | = #??? # """#?????????????# | | = #??########### " """#?????????????# "" | | #????????????# "" ""#?????????????# """ | | """" #????????????# G ""??????????????# S" | | """" #????????????# "" ???????????????# """ | | """" #????????????# " ??????????????# """ | | """" #????????????# ! ??????????????# | | """"??#??????????????#######??????????????####+# | | """"?????????????????????????????????????????# | | """"?????????????????????????????????????????# | | ???????????????????????????????????????# | | """" #??????????????????????????????????????# | | """"?????????????????????????????????????????# | | """??????????????????????????????????????????# | | ""???????????????????????????????????????????# | | ""???????????????????????????????????????????? | | ""???????????????????????????????????????????? | | ""???????????????????????????????????????????? | | ???????????????????????????????????????????? | | ""???????????????????????????????????????????? | | ? ??????????????????????????????????????????????## | | ?????????????????????????????????????????????????? | +----------------------------------------------------+ Best States ------------- Heat Dissipation 34 Energy Generation 25 Energy Capacity 330 Matter Stores 300 Matter Capacity 300 Sight Range 16 Terrain Scan Range 14 Terrain Scan Density 10 Armor Coverage 150 Resistance: KI 20 Power Shielding 33 Evasion (%) 64 Targeting Accuracy 6 Melee Accuracy 5 Item Schematics ----------------- None Robot Schematics ------------------ None Fabricated ------------ Nothing Alien Tech Used ----------------- None Achievements -------------- None Challenges ------------ None Game ------ Seed LegChromaticWheel Manual? 0 Play Time 00:32:36 Cumulative 17.9 hours Start 2024.03.24 @ 18:58:13 End 2024.03.24 @ 19:30:15 Sessions 3 Manual Loads 0 Difficulty Rogue Special Mode None Game No. 52 Rogue 52 Adventurer 0 Explorer 0 Win Type - Total 0 Types 0/0/0/0/0/0/0/0/0 Lore% 14 Gallery% 23 Achievement% 19 Wizard Run 0 Options --------- Layout 1 ASCII 0 Keyboard 1 Movement Numpad Keybinds 0 Fullscreen 2 Font 24/Terminus Map View 50x35 Zoom Use 0% Tactical HUD 1 Map Filters NONE Filters NONE Steam 1 RUN: 9f29c5e5-4906-433d-abd7-d11c1f45e91a